Cogmind - Beta 15 @@@ ROGUE MODE // 2025.07.24 @ 09:39:13 Player: shapeshifter Result: Destroyed by S-10 Pest with Light Assault Rifle Performance ------------- Evolutions (2) 1000 Regions Visited (5) 1000 Robots Destroyed (30) 150 Value Destroyed (927) 927 Prototype IDs (23) 460 Alien Tech Used (0) 0 Bonus (300) 300 TOTAL SCORE: 3837 Bonus ------- Aligned with FarCom 300 Cogmind --------- Core Integrity 0/550 Matter 102/300 Energy 99/100 System Corruption 0% Temperature Cool (0) Movement Core (50) Location -8/Materials Parts ------- > --- POWER (1) -------- (None) > --- PROPULSION (3) --- (None) > --- UTILITY (4) ------ (None) > --- WEAPON (3) ------- (None) > --- INVENTORY (5) ---- Field Lobotomy Kit (5) Peak State ------------ > --- POWER ------------ Ion Engine > --- PROPULSION ------- Improved Hover Unit Improved Hover Unit > --- UTILITY ---------- Small Storage Unit Seismic Detector > --- WEAPON ----------- Assault Rifle Field Lobotomy Kit > --- INVENTORY -------- Ion Engine Compact Wheel Heat Sink Spread Laser Spread Laser Spread Laser Light Assault Rifle Mini Grenade Launcher [Rating: 19] Favorites ----------- Power Ion Engine Engine Ion Engine Power Core Light Nuclear Core Propulsion Improved Hover Unit Treads Light Treads Wheel Compact Wheel Hover Unit Improved Hover Unit Utility Small Storage Unit Device Seismic Detector Storage Small Storage Unit Protection Hardened Medium Armor Plating Weapon Assault Rifle Energy Gun Spread Laser Ballistic Gun Assault Rifle Launcher Mini Grenade Launcher Special Weapon Field Lobotomy Kit Build | -11 -10 -10 -10 -9 -8 ------- Run | Yrd Mat Min Exi Min Mat Slots Evolved 4 | . . . . . 4 Power . | . . . . . . Propulsion 1 | . . . . . 1 Utility 2 | . . . . . 2 Weapon 1 | . . . . . 1 Parts Attached 24 | 7 4 . 1 . 12 Power 2 | 1 . . . . 1 Engine 1 | 1 . . . . . Core 1 | . . . . . 1 Reactor . | . . . . . . Propulsion 7 | 2 2 . . . 3 Treads 2 | 2 . . . . . Leg . | . . . . . . Wheel 1 | . . . . . 1 Hover 4 | . 2 . . . 2 Flight . | . . . . . . Utility 4 | 2 . . . . 2 Device 2 | 1 . . . . 1 Storage 1 | 1 . . . . . Processor . | . . . . . . Hackware . | . . . . . . Protection 1 | . . . . . 1 Artifact . | . . . . . . Weapon 11 | 2 2 . 1 . 6 Energy Gun 5 | . 1 . . . 4 Energy Cannon . | . . . . . . Ballistic Gun 4 | 2 . . . . 2 Ballistic Cannon . | . . . . . . Launcher 1 | . 1 . . . . Special Weapon 1 | . . . 1 . . Impact Weapon . | . . . . . . Slashing Weapon . | . . . . . . Piercing Weapon . | . . . . . . Special Melee Weapon . | . . . . . . Unidentified Prototypes . | . . . . . . Parts Lost 19 | . . . . . 19 Power 2 | . . . . . 2 Propulsion 5 | . . . . . 5 Utility 4 | . . . . . 4 Weapon 8 | . . . . . 8 Highest Loss Streak 7 | . . . . . 7 To Critical Strikes . | . . . . . . Average Backups 5 | 3 7 8 8 8 2 Power . | . 1 1 1 1 . Propulsion 1 | 1 2 2 1 1 . Utility . | . . 1 1 1 . Weapon 2 | . 3 4 4 4 1 Tool/Special . | . . . . . . Unused Backups 8 | . 6 . 1 . 1 Power 1 | . . . . . 1 Propulsion 2 | . 1 . 1 . . Utility 1 | . 1 . . . . Weapon 4 | . 4 . . . . Tool/Special . | . . . . . . Average Slot Usage (%) 76 | . 99 100 100 100 49 Engine 9 | . 14 14 14 14 3 Core 1 | . . . . . 3 Treads 3 | . 16 . . . . Hover 15 | . 11 28 28 28 7 Device 10 | . 14 14 14 14 7 Storage 10 | . 14 14 14 14 5 Energy Gun 2 | . . . . . 5 Ballistic Gun 19 | . 26 28 28 28 9 Launcher 1 | . 1 . . . 3 Peak Build Rating 19 | 7 11 10 19 11 17 Average Rating 9 | 5 8 10 10 11 10 On Entrance 8 | . 7 10 10 11 11 Naked Turns 11 | . . . . . 11 Heaviest Build 20 | 14 16 14 14 14 20 Greatest Support 40 | 40 40 14 14 14 16 Greatest Overweight (x) 4 | . 1 . . . 4 Average Overweight (x) . | . . . . . 1 Largest Inventory Capacity 8 | 8 8 8 8 8 8 Average Capacity 7 | 7 8 8 8 8 6 Most Carried 8 | 6 8 8 8 8 7 Average Carried 5 | 3 7 8 7 8 2 Final Capacity 8 | 8 8 8 8 8 5 Final Carried 8 | 5 8 8 8 8 1 Class Distribution -------------------- 83% | Mutant 16% | Skirmisher Dominant Class ---------------- Mutant | -10/Materials Mutant | -10/Mines Mutant | -10/Exiles Mutant | -9/Mines Mutant | -8/Materials Resources | -11 -10 -10 -10 -9 -8 ----------- Run | Yrd Mat Min Exi Min Mat Matter Collected 516 | 217 98 . . . 201 Remotely . | . . . . . . Salvage Created 846 | 10 105 . . . 731 Parts 56 | 3 7 . . . 46 Haulers Intercepted . | . . . . . . Recyclers Shooed . | . . . . . . Parts Field Recycled . | . . . . . . Retrieved Matter . | . . . . . . Parts Self-Destructed . | . . . . . . Prevented . | . . . . . . Kills | -11 -10 -10 -10 -9 -8 ------- Run | Yrd Mat Min Exi Min Mat Combat Hostiles Destroyed 22 | . 3 . . . 19 Guns 16 | . 2 . . . 14 AOE 5 | . 1 . . . 4 Classes Destroyed 10 | 1 2 . . . 7 Builder 4 | . . . . . 4 Tunneler 2 | 1 . . . . 1 Recycler 1 | . . . . . 1 Watcher 1 | . 1 . . . . Swarmer 4 | . . . . . 4 Grunt 12 | . 3 . . . 9 Brawler 1 | . . . . . 1 Duelist 1 | . . . . . 1 Sentry 1 | . . . . . 1 Hunter 3 | . . . . . 3 Best Kill Streak 12 | 1 2 . . . 12 Combat Bots Only 8 | . 2 . . . 8 Max Kills in Single Turn 3 | 1 1 . . . 3 Gunslinging 1 | . . . . . 1 Exploded 1 | . 1 . . . 1 Melee . | . . . . . . Uniques/NPCs Destroyed . | . . . . . . Combat | -11 -10 -10 -10 -9 -8 -------- Run | Yrd Mat Min Exi Min Mat Hostile Shots Fired 223 | . 8 . . 1 214 Missed 67 | . 4 . . 1 62 Hits 156 | . 4 . . . 152 Melee 4 | . . . . . 4 Projectile 152 | . 4 . . . 148 Critical Strikes 5 | . . . . . 5 Damage Taken 2086 | . 80 . . . 2006 Core 579 | . 22 . . . 557 Absorbed by Shields . | . . . . . . Core Remaining (%) 95 | 100 . . . 91 . Volleys Fired 76 | 3 6 . . . 67 Largest 3 | 2 2 . . . 3 Hottest 150 | 40 50 . . . 150 Shots Fired 127 | 6 12 . . . 109 Gun 112 | 6 9 . . . 97 Cannon . | . . . . . . Launcher 15 | . 3 . . . 12 Special . | . . . . . . Kinetic 62 | 6 9 . . . 47 Thermal 43 | . . . . . 43 Explosive 15 | . 3 . . . 12 Electromagnetic 7 | . . . . . 7 Robot Hit Streak 9 | 2 5 . . . 9 Robot Miss Streak 7 | 1 2 . . . 7 Penetration Max . | . . . . . . Secondary Targets 2 | . . . . . 2 Max Gunslinging Chain 1 | . . . . . 1 Shots Hit Robots 87 | 3 8 . . . 76 Core Hits 86 | 1 9 . . . 76 Critical Kills . | . . . . . . Critical Parts Destroyed 1 | . . . . . 1 Critical Strikes 1 | . . . . . 1 Destroy 1 | . . . . . 1 Melee Attacks . | . . . . . . Impact . | . . . . . . Slashing . | . . . . . . Piercing . | . . . . . . Sneak Attacks . | . . . . . . Combat Hostiles . | . . . . . . Follow-up Attacks . | . . . . . . Damage Inflicted 2216 | 29 268 . . . 1919 Guns 1132 | 29 78 . . . 1025 Cannons . | . . . . . . Explosions 1084 | . 190 . . . 894 Melee . | . . . . . . Ramming . | . . . . . . Kinetic 509 | 29 78 . . . 402 Thermal 528 | . . . . . 528 Explosive 1084 | . 190 . . . 894 Electromagnetic 95 | . . . . . 95 Impact . | . . . . . . Slashing . | . . . . . . Piercing . | . . . . . . Highest Corruption . | . . . . . . Average Corruption . | . . . . . . Corruption Purged . | . . . . . . Corruption Blocked . | . . . . . . Overload Shots . | . . . . . . Overflow Damage . | . . . . . . Projectiles . | . . . . . . Explosions . | . . . . . . Melee . | . . . . . . Knockbacks . | . . . . . . Impact . | . . . . . . Kinetic . | . . . . . . Secondary . | . . . . . . Self-Inflicted Damage 45 | . 21 . . . 24 Shots 2 | . 1 . . . 1 Rammed . | . . . . . . Targets Rammed . | . . . . . . Kicked . | . . . . . . Crushed . | . . . . . . Highest Temperature 370 | . 8 . . . 370 Average Temperature 115 | . 4 . . . 119 Received Heat Transfer 525 | . 30 . . . 495 Effects 2 | . . . . . 2 Interference 1 | . . . . . 1 Damage (minor) 1 | . . . . . 1 Siege Activations . | . . . . . . Martial Activations . | . . . . . . Shielding Activations . | . . . . . . Robots Disrupted . | . . . . . . Combat Hostiles . | . . . . . . Robots Corrupted . | . . . . . . Combat Hostiles . | . . . . . . Parts Fried . | . . . . . . Impact Corruptions . | . . . . . . Robots Melted 1 | . . . . . 1 Combat Hostiles 1 | . . . . . 1 Parts Melted 1 | . . . . . 1 Heat Transferred 869 | . . . . . 869 Parts Sabotaged . | . . . . . . Parts Stolen . | . . . . . . Parts Stripped . | . . . . . . Power Chain Reactions . | . . . . . . Alert | -11 -10 -10 -10 -9 -8 ------- Run | Yrd Mat Min Exi Min Mat Maximum Alert Level 1 | . . . . . 1 Low Security (%) 71 | 100 100 100 . 100 47 Level 1 28 | . . . . . 52 Level 2 . | . . . . . . Level 3 . | . . . . . . Level 4 . | . . . . . . Level 5 . | . . . . . . High Security . | . . . . . . Max Security . | . . . . . . Peak Influence 286 | 5 72 24 . . 286 Initial 24 | . . 24 . . . Average 91 | . 28 14 . . 158 Influence Increases 763 | 5 112 . . . 646 Destroy 0b10 Robot/C 440 | . 60 . . . 380 Destroy 0b10 Robot/NC 40 | 5 5 . . . 30 Destroy Leader 122 | . 22 . . . 100 Successful Hack 15 | . 8 . . . 7 Destroy Structure 71 | . 17 . . . 54 Lose Combat Pursuer 75 | . . . . . 75 Influence Decreases 501 | 5 50 58 4 . 384 Entered New Map 42 | . . 38 4 . . Time Decay 269 | 5 50 20 . . 194 Lost Part 190 | . . . . . 190 Squads Dispatched 9 | . 3 . . . 6 Investigation 6 | . 2 . . . 4 Extermination . | . . . . . . Reinforcement 3 | . 1 . . . 2 Assault . | . . . . . . Garrison . | . . . . . . Intercept . | . . . . . . Searches Triggered . | . . . . . . Construction Impeded . | . . . . . . Haulers Reinforced . | . . . . . . Active Scanning Responses . | . . . . . . Cargo Convoy Interrupts . | . . . . . . Stealth | -11 -10 -10 -10 -9 -8 --------- Run | Yrd Mat Min Exi Min Mat Distress Signals 2 | . 1 . . . 1 Communications Jammed . | . . . . . . Distress Signals . | . . . . . . Times Spotted 35 | . 7 . . 2 26 Peak Tracking Total 10 | . 5 . . 4 10 Tactical Retreats 2 | . . . . . 2 Traps | -11 -10 -10 -10 -9 -8 ------- Run | Yrd Mat Min Exi Min Mat Traps Triggered 5 | . 1 . . . 4 Indirectly . | . . . . . . Trap Hack Attempts . | . . . . . . Triggered . | . . . . . . Disarmed . | . . . . . . Reprogrammed . | . . . . . . Reused . | . . . . . . Traps Extracted . | . . . . . . Installed 3 | . . 3 . . . Triggered . | . . . . . . Machines | -11 -10 -10 -10 -9 -8 ---------- Run | Yrd Mat Min Exi Min Mat Machines Disabled . | . . . . . . Max in Single Turn . | . . . . . . Machines Repaired . | . . . . . . Machines Dismantled . | . . . . . . Machines Sabotaged . | . . . . . . Overloaded Fab Kills . | . . . . . . Hacking | -11 -10 -10 -10 -9 -8 --------- Run | Yrd Mat Min Exi Min Mat Machines Accessed 5 | . 1 . 1 . 3 Terminals 4 | . 1 . . . 3 Fabricators . | . . . . . . Repair Stations . | . . . . . . Recycling Units . | . . . . . . Scanalyzers . | . . . . . . Garrison Access . | . . . . . . Total Hacks 13 | . 3 . 1 . 9 Successful 5 | . 2 . 1 . 2 Failed 8 | . 1 . . . 7 Catastrophic 3 | . 1 . . . 2 Database Lockouts . | . . . . . . Manual 13 | . 3 . 1 . 9 Terminals 12 | . 3 . . . 9 Fabricators . | . . . . . . Repair Stations . | . . . . . . Recycling Units . | . . . . . . Scanalyzers . | . . . . . . Garrison Access . | . . . . . . Terminal Hacks 3 | . 1 . 1 . 1 Branch Access Points 2 | . 1 . . . 1 Proto ID Catalog 1 | . . . 1 . . Fabricator Hacks . | . . . . . . Repair Station Hacks . | . . . . . . Recycling Unit Hacks . | . . . . . . Scanalyzer . | . . . . . . Garrison Access Hacks . | . . . . . . Unauthorized Hacks 2 | . 1 . . . 1 Terminals 2 | . 1 . . . 1 Botnet 2 | . 1 . . . 1 Fabricators . | . . . . . . Repair Stations . | . . . . . . Recycling Units . | . . . . . . Scanalyzers . | . . . . . . Garrison Access . | . . . . . . Data Cores Recovered . | . . . . . . Used . | . . . . . . Hacking Detections 3 | . 1 . . . 2 Full Trace Events 3 | . 1 . . . 2 Feedback Events . | . . . . . . Feedback Blocked . | . . . . . . Robot Schematics Acquired . | . . . . . . Robots Built . | . . . . . . Authchips . | . . . . . . Time . | . . . . . . Total Robot Build Rating . | . . . . . . Part Schematics Acquired . | . . . . . . Parts Built . | . . . . . . Authchips . | . . . . . . Time . | . . . . . . Total Part Build Rating . | . . . . . . Parts Repaired . | . . . . . . Time . | . . . . . . Parts Recycled . | . . . . . . Recycled Matter . | . . . . . . Retrieved Matter . | . . . . . . Retrieved Components . | . . . . . . Parts Scanalyzed . | . . . . . . Part Schematics Acquired . | . . . . . . Parts Damaged . | . . . . . . Bothacking | -11 -10 -10 -10 -9 -8 ------------ Run | Yrd Mat Min Exi Min Mat Used RIF Installer . | . . . . . . Robots Hacked . | . . . . . . Non-combat . | . . . . . . Combat . | . . . . . . Robot Hacks Applied . | . . . . . . Relay Couplers Released . | . . . . . . Fabnet Peak Effective % . | . . . . . . Robots Rewired . | . . . . . . Allies Hacked . | . . . . . . Hacks Repelled . | . . . . . . Allies | -11 -10 -10 -10 -9 -8 -------- Run | Yrd Mat Min Exi Min Mat Total Allies . | . . . . . . Largest Group . | . . . . . . Highest-Rated Group . | . . . . . . Highest-Rated Ally . | . . . . . . Total Orders . | . . . . . . Ally Attacks . | . . . . . . Total Damage . | . . . . . . Kills . | . . . . . . Allies Corrupted . | . . . . . . Allies Melted . | . . . . . . Intel | -11 -10 -10 -10 -9 -8 ------- Run | Yrd Mat Min Exi Min Mat Active Infowar (turns) 799 | 8 198 53 237 20 283 Seismic 799 | 8 198 53 237 20 283 Robot Analysis Total . | . . . . . . Derelict Logs Recovered . | . . . . . . Drone Launches . | . . . . . . Drone Recoveries . | . . . . . . Exploration | -11 -10 -10 -10 -9 -8 ------------- Run | Yrd Mat Min Exi Min Mat Turns Passed 1098 | 132 198 53 237 20 458 Spaces Moved 988 | 70 157 89 413 35 224 Core 46 | 6 . . . . 40 Treads 124 | 64 60 . . . . Legs . | . . . . . . Wheels 48 | . . . . . 48 Hover 770 | . 97 89 413 35 136 Flight . | . . . . . . Fastest Speed 50 | 50 56 56 56 56 50 Average Speed 84 | 150 100 56 56 56 120 Slowest Speed 250 | 160 160 56 56 56 250 Overloaded Moves . | . . . . . . Propulsion Burnouts . | . . . . . . Robots Hopped . | . . . . . . Potential Cave-ins . | . . . . . . Cave-ins Triggered . | . . . . . . Exploration Rate (%) 31 | 4 27 29 89 10 31 Regions Visited 5 Branch Regions 3 Pre-discovered Areas . | . . . . . . Known Exits Taken 1 | . 1 . . . . Unknown Exits Taken 4 | 1 . 1 1 1 . Scrap Searched . | . . . . . . Spaces Dug . | . . . . . . Terrain Destroyed 72 | . 17 . . . 55 Melee . | . . . . . . Projectile . | . . . . . . AOE 72 | . 17 . . . 55 Terrain Rammed . | . . . . . . Walls Destroyed . | . . . . . . Machines Disabled . | . . . . . . Actions | -11 -10 -10 -10 -9 -8 --------- Run | Yrd Mat Min Exi Min Mat Total 1137 | 91 185 91 417 34 319 Wait 5 | . . . . . 5 Move 983 | 69 156 88 412 34 224 Hop . | . . . . . . Pick Up 30 | 12 9 . 1 . 8 Fast Attach 2 | . 2 . . . . Attach 21 | 7 . . . . 14 Detach . | . . . . . . Swap 6 | . 4 . 2 . . Drop 10 | . 8 . 1 . 1 Fire 76 | 3 6 . . . 67 Melee . | . . . . . . Ram . | . . . . . . Kick . | . . . . . . Crush . | . . . . . . Escape Stasis . | . . . . . . Rewire 1 | . . . 1 . . Trap 3 | . . 3 . . . Miscellaneous . | . . . . . . Route ------- -11/Scrapyard -10/Materials (discovered 3 exits: *Min x2 / [*Sub]) -10/Mines -10/Exiles -9/Mines -8/Materials History --------- Turn | Location | Event 26 | -11/Scrapyard | Discovered new exit (range 15) 133 | -11/Scrapyard | Entered Materials 159 | -10/Materials | Discovered new exit (range 16) 188 | -10/Materials | Discovered new exit (range 16) 287 | -10/Materials | Identified exit to Mines 329 | -10/Materials | Build established: Mutant 331 | -10/Materials | Entered Mines 348 | -10/Mines | Found a hidden stash of uninstalled traps 382 | -10/Mines | Deemed a non-threat by the Exiles lab entrance 382 | -10/Mines | Discovered new exit (range 5) 384 | -10/Mines | Entered Exiles 400 | -10/Exiles | Met 8R-AWN 409 | -10/Exiles | Met EX-HEX 429 | -10/Exiles | Met EX-BIN 437 | -10/Exiles | Aligned with FarCom system 437 | -10/Exiles | Given EX-Vault access code 450 | -10/Exiles | Opened EX-Vault 454 | -10/Exiles | Found Field Lobotomy Kit 467 | -10/Exiles | Warned to stay clear of 0b10 Research branches 508 | -10/Exiles | Met EX-DEC 517 | -10/Exiles | Visited The Gauntlet 613 | -10/Exiles | Discovered new exit (range 14) 621 | -10/Exiles | Left Exiles lab with Field Lobotomy Kit 621 | -10/Exiles | Entered Mines 634 | -9/Mines | Discovered new exit (range 10) 641 | -9/Mines | Entered Materials 641 | -8/Materials | Evolved 4 slots: Propulsion x1, Utility x2, Weapon x1 846 | -8/Materials | Destroyed 8 combat bots 849 | -8/Materials | Lost 6 parts (1p2n3w) 955 | -8/Materials | Lost 3 parts (1n2u) 1034 | -8/Materials | Core integrity fell below 50% 1060 | -8/Materials | Core integrity fell below 20% 1093 | -8/Materials | Lost 7 parts (1p1n1u4w) 1099 | -8/Materials | Destroyed by S-10 Pest with Light Assault Rifle Last Messages --------------- 01053_ Slug penetrates Fusion Modulator. 01056_ U-05 Engineer lays Concrete. 01056_ Penetrated by Slug. 01057_ U-05 Engineer lays Concrete. 01059_ Slug penetrates Wall. 01061_ U-05 Engineer lays Concrete. 01062_ Particle Gun destroyed. 01064_ H-55 Commando heat damages core (-11). 01064_ Carbon-fiber Leg melted. 01064_ U-05 Engineer lays Concrete. 01068_ Acquired Gauss Rifle. 01069_ U-05 Engineer lays Concrete. 01080_ Slug penetrates Wall. 01082_ Slug penetrates S-10 Pest. 01082_ S-10 Pest destroyed. 01084_ Slug penetrates S-10 Pest. 01088_ Slug penetrates Wall. 01092_ Slug penetrates S-10 Pest. 01094_ Slug penetrates Wall. 01095_ Gauss Rifle destroyed. Map ----- +----------------------------------------------------+ | ????????????????????????????????????????####?????? | | ???????????????????????????????????????# #????? | | ???????????????????????????????????????# #????? | | ???????????????????????????????????????# #????? | | ??????????????????????????????????" ???# #???## | | ?????????????????????????????????#T ??# #???# | | ?????????????????????????????????#" ??? ##### | | ?????????????????????????????????# ####+## # | | ???????????????????????????????### # " | | ???????????????????????????????# + / # # | | ???????????????????????????????# # + # | | ???????????????????????????????# # # ## | | ???????????????????????????????# ###### * #? | | ????????????? ????????# ????# *% ! #? | | ????????????? [???????#! "??# !% %! #? | | ??????????????? [[??????# "" # #? | | ???????????????## ###??# + % #? | | ???????????# # ########### """ #? | | ???????????# ####### ##### T" """ #? | | ???????????# "" """ #? | | ???????????# % ss T%* + | | ???????????# s # | | ???????????#######+### #########"T"#####+#### | | ???????????? /= | ## ##???????##### #? | | ???????????# * # #????????????# #? | | ???????????# ] ?# @#?????########= [[ #? | | ???????????? ??# ####### ## [ #? | | ???????????? """ ""???# ^ ! =## #? | | ??????????????"" "????# ^ !% ## #? | | ???????????????"??????# ! ## !#? | | ??????????????????????########### ## #? | | ????????????????????????????????## ## ####### | | ?????????????????????????######### # ! #??? | | ?????????????????????????#! ! =# #??# | | ?????????????????????????# % +% #??# | | ?????????????????????????# % # #??# | | ?????????????????????????######### # * #???? | | ????????????????????????????? #w #########???? | | ??????????????????????????? # # ########## | | ???????????????????????????? # % | | ???????????????????????????? # | | ???????????????????????????? + | | ???????????????????????????? # ############# | | ?????????????????????????????##### #???????????? | | ?????????????????????????????????# #???????????? | | ?????????????????????????????????# ###???????????? | | ?????????????????????????????????# ??????????????? | | ?????????????????????????????????# ??????????????? | | ?????????????????????????????????# ??????????????? | | ?????????????????????????????????# ??????????????? | +----------------------------------------------------+ Best States ------------- Heat Dissipation 41 Energy Generation 14 Energy Capacity 250 Matter Stores 300 Matter Capacity 300 Sight Range 16 Terrain Scan Density 10 Armor Coverage 225 Evasion (%) 53 Recoil Reduction 2 Item Schematics ----------------- None Robot Schematics ------------------ None Fabricated ------------ Nothing Repaired ---------- Nothing Alien Tech Used ----------------- None Achievements -------------- None Challenges ------------ None Game ------ Seed SkeletonBoltCharge Manual? 0 Play Time 00:16:32 Cumulative 48.2 hours Start 2025.07.24 @ 09:27:23 End 2025.07.24 @ 09:39:13 Sessions 1 Manual Loads 0 Difficulty Rogue Special Mode None Game No. 123 Rogue 123 Adventurer 0 Explorer 0 Win Type - Total 0 Types 0/0/0/0/0/0/0/0/0/0 Lore% 39 Gallery% 38 Achievement% 31 Wizard Run 0 Options --------- Layout 1 ASCII 0 Keyboard 0 Movement Mouse Keybinds 0 Fullscreen 1 Font 24/Smallcaps Map View 50x35 Zoom Use 0% Tactical HUD 1 Map Filters NONE Filters NONE Steam 1 RUN: 3524fbd3-35c1-4a75-954e-43aac49ae1d1